Cogmind - Beta 13 @@@ ROGUE MODE // 2024.04.07 @ 12:32:36 Player: dohmmass Result: Destroyed by Y-54 Guardian with Gatling Laser Performance ------------- Evolutions (3) 1500 Regions Visited (6) 1200 Robots Destroyed (53) 265 Value Destroyed (1357) 1357 Prototype IDs (4) 80 Alien Tech Used (0) 0 Bonus (0) 0 TOTAL SCORE: 4402 Bonus ------- None Cogmind --------- Core Integrity 0/700 Matter 300/300 Energy 58/100 System Corruption 2% Temperature Cool (6) Movement Core (50) Location -7/Storage Parts ------- > --- POWER (1) -------- (None) > --- PROPULSION (2) --- (None) > --- UTILITY (6) ------ (None) > --- WEAPON (4) ------- (None) > --- INVENTORY (5) ---- Armored Treads Aluminum Leg Improved Terrain Scan Processor Light Regenerative Plating Peak State ------------ > --- POWER ------------ Deuterium Engine > --- PROPULSION ------- Advanced Treads Advanced Treads > --- UTILITY ---------- Melee Analysis Suite Heavy Armor Plating Heavy Armor Plating Hardlight Generator > --- WEAPON ----------- Hammer Mace > --- INVENTORY -------- Armored Treads Advanced Treads Improved Terrain Scan Processor [Rating: 30] Favorites ----------- Power Deuterium Engine Engine Deuterium Engine Power Core Light Nuclear Core Propulsion Advanced Treads Treads Advanced Treads Leg Aluminum Leg Wheel Wheel Hover Unit Gravmag System Utility Melee Analysis Suite Device Terrain Scanner Processor Melee Analysis Suite Protection Heavy Armor Plating Weapon Medium Laser Energy Gun Medium Laser Launcher Proton Missile Launcher Impact Weapon Mace Build | -11 -10 -9 -9 -8 -7 -7 ------- Run | Yrd Mat Mat Min Mat Fac Sto Slots Evolved 6 | . . 2 . 2 2 . Power . | . . . . . . . Propulsion . | . . . . . . . Utility 4 | . . 2 . . 2 . Weapon 2 | . . . . 2 . . Parts Attached 31 | 5 3 1 4 7 2 9 Power 4 | 1 . 1 . 1 . 1 Engine 3 | 1 . 1 . 1 . . Core 1 | . . . . . . 1 Reactor . | . . . . . . . Propulsion 14 | 2 2 . 2 3 . 5 Treads 5 | . . . . 3 . 2 Leg 1 | . . . . . . 1 Wheel 6 | 2 2 . 2 . . . Hover 2 | . . . . . . 2 Flight . | . . . . . . . Utility 7 | . 1 . . 2 2 2 Device 2 | . 1 . . . 1 . Storage . | . . . . . . . Processor 2 | . . . . 1 . 1 Hackware . | . . . . . . . Protection 3 | . . . . 1 1 1 Artifact . | . . . . . . . Weapon 6 | 2 . . 2 1 . 1 Energy Gun 2 | 2 . . . . . . Energy Cannon . | . . . . . . . Ballistic Gun . | . . . . . . . Ballistic Cannon . | . . . . . . . Launcher 2 | . . . 1 . . 1 Special Weapon . | . . . . . . . Impact Weapon 2 | . . . 1 1 . . Slashing Weapon . | . . . . . . . Piercing Weapon . | . . . . . . . Special Melee Weapon . | . . . . . . . Unidentified Prototypes 2 | . . 1 . . . 1 Parts Lost 26 | . 2 1 8 . 1 14 Power 4 | . . 1 1 . . 2 Propulsion 10 | . 2 . 3 . . 5 Utility 6 | . . . 1 . 1 4 Weapon 6 | . . . 3 . . 3 Highest Loss Streak 7 | . 2 1 7 . 1 6 To Critical Strikes . | . . . . . . . Average Slot Usage (%) 49 | . 64 65 52 43 64 31 Engine 6 | . 14 10 9 5 7 . Treads 8 | . . . . 16 15 7 Wheel 7 | . 21 22 18 . . . Device 3 | . 1 11 7 . 6 . Processor 3 | . . . . 6 7 4 Protection 3 | . . . . 4 11 1 Energy Gun 7 | . 28 22 15 . . . Impact Weapon 6 | . . . 1 10 15 8 Naked Turns 4 | . . . . . . 4 Heaviest Build 48 | 7 8 13 13 28 48 33 Greatest Support 44 | 20 20 20 32 44 44 44 Greatest Overweight (x) 4 | . 2 . 1 . 1 4 Average Overweight (x) . | . . . . . . . Largest Inventory Capacity 5 | 5 5 5 5 5 5 5 Average Capacity 5 | 5 5 5 5 5 5 5 Most Carried 5 | 4 4 2 2 5 4 4 Average Carried 2 | 1 1 1 1 4 3 2 Final Capacity 5 | 5 5 5 5 5 5 5 Final Carried 5 | . 1 1 . 5 3 4 Class Distribution -------------------- 79% | Mutant 20% | Gladiator Dominant Class ---------------- Mutant | -10/Materials Mutant | -9/Materials Mutant | -9/Mines Mutant | -8/Materials Gladiator | -7/Factory Mutant | -7/Storage Resources | -11 -10 -9 -9 -8 -7 -7 ----------- Run | Yrd Mat Mat Min Mat Fac Sto Matter Collected 504 | 238 12 38 32 60 25 99 Remotely . | . . . . . . . Salvage Created 1960 | . 226 38 256 433 143 864 Parts 74 | . 15 6 8 13 3 29 Haulers Intercepted 7 | . 1 . . 2 . 4 Recyclers Shooed 2 | . . . 1 . . 1 Parts Field Recycled . | . . . . . . . Retrieved Matter . | . . . . . . . Parts Self-Destructed . | . . . . . . . Prevented . | . . . . . . . Kills | -11 -10 -9 -9 -8 -7 -7 ------- Run | Yrd Mat Mat Min Mat Fac Sto Combat Hostiles Destroyed 36 | . 5 3 4 10 4 10 Melee 11 | . . . . 7 . 4 Guns 11 | . 5 3 3 . . . AOE 2 | . . . . . . 2 Classes Destroyed 11 | . 4 . 3 3 . 1 Worker 1 | . . . . . . 1 Builder 2 | . . . . 1 . 1 Tunneler 2 | . . . 2 . . . Hauler 7 | . 1 . . 2 . 4 Recycler 3 | . . . 1 . . 2 Watcher 2 | . 2 . . . . . Swarmer 12 | . 3 3 . 4 2 . Grunt 18 | . 2 . 3 3 . 10 Brawler 1 | . . . . 1 . . Sentry 4 | . . . . 2 2 . Demolisher 1 | . . . 1 . . . Best Kill Streak 7 | . 4 3 2 5 1 7 Combat Bots Only 6 | . 3 3 2 5 1 6 Max Kills in Single Turn 2 | . 2 1 1 1 1 1 Gunslinging 1 | . 1 . . . . . Exploded 1 | . . . . . . 1 Melee 1 | . . . . 1 . 1 Uniques/NPCs Destroyed . | . . . . . . . Combat | -11 -10 -9 -9 -8 -7 -7 -------- Run | Yrd Mat Mat Min Mat Fac Sto Hostile Shots Fired 597 | . 20 12 26 49 171 319 Missed 202 | . 3 4 4 14 57 120 Damage Taken 4098 | . 167 112 708 447 589 2075 Core 1202 | . 32 6 368 94 24 678 Absorbed by Shields 496 | . . . . . 456 40 Regen/Repaired (Parts) 23 | . . . . . . 23 Core Remaining (%) 68 | 100 87 . 6 82 . . Volleys Fired 52 | . 21 7 22 . . 2 Largest 2 | . 2 2 2 . . 1 Hottest 100 | . 100 100 100 . . 39 Shots Fired 90 | . 42 14 32 . . 2 Gun 87 | . 42 14 31 . . . Cannon . | . . . . . . . Launcher 3 | . . . 1 . . 2 Special . | . . . . . . . Kinetic . | . . . . . . . Thermal 87 | . 42 14 31 . . . Explosive 1 | . . . 1 . . . Electromagnetic 2 | . . . . . . 2 Robot Hit Streak 20 | . 6 2 20 . . 1 Robot Miss Streak 4 | . 4 4 1 . . 1 Penetration Max . | . . . . . . . Secondary Targets 1 | . 1 . . . . . Max Gunslinging Chain 1 | . 1 . . . . . Shots Hit Robots 143 | . 22 5 27 25 19 45 Core Hits 44 | . 11 3 12 4 1 13 Critical Kills 1 | . . . . 1 . . Critical Parts Destroyed 15 | . . . . 4 3 8 Critical Strikes 24 | . 2 . 5 5 3 9 Burn 7 | . 2 . 5 . . . Smash 17 | . . . . 5 3 9 Melee Attacks 122 | . . . 1 33 28 60 Impact 122 | . . . 1 33 28 60 Slashing . | . . . . . . . Piercing . | . . . . . . . Sneak Attacks 14 | . . . . 5 . 9 Combat Hostiles . | . . . . . . . Follow-up Attacks 4 | . . . . . 3 1 Damage Inflicted 3883 | . 289 62 360 966 498 1708 Guns 659 | . 287 62 310 . . . Cannons . | . . . . . . . Explosions 226 | . . . 22 . . 204 Melee 2996 | . . . 28 966 498 1504 Ramming 2 | . 2 . . . . . Kinetic . | . . . . . . . Thermal 741 | . 287 62 310 . . 82 Explosive 22 | . . . 22 . . . Electromagnetic 122 | . . . . . . 122 Impact 2996 | . . . 28 966 498 1504 Slashing . | . . . . . . . Piercing . | . . . . . . . Highest Corruption 2 | . . . . . 2 2 Average Corruption 2 | . . . . . 2 2 Corruption Purged . | . . . . . . . Corruption Blocked . | . . . . . . . Effects 6 | . . . . . 1 5 Message Errors 3 | . . . . . . 3 Matter Fused 1 | . . . . . . 1 Energy Discharges 1 | . . . . . 1 . Alerts 1 | . . . . . . 1 Overload Shots . | . . . . . . . Overflow Damage 789 | . . . 25 310 99 355 Projectiles . | . . . . . . . Explosions . | . . . . . . . Melee 789 | . . . 25 310 99 355 Knockbacks 10 | . . . . 1 1 8 Impact 10 | . . . . 1 1 8 Kinetic . | . . . . . . . Secondary . | . . . . . . . Self-Inflicted Damage 53 | . 1 . 25 . . 27 Shots 3 | . . . 1 . . 2 Rammed 1 | . 1 . . . . . Targets Rammed 1 | . 1 . . . . . Kicked . | . . . . . . . Crushed . | . . . . . . . Highest Temperature 270 | . 270 231 116 . . 2 Average Temperature 81 | . 104 117 34 . . 2 Received Heat Transfer 1393 | . 66 . 60 126 99 1042 Effects 3 | . . 3 . . . . Interference 3 | . . 3 . . . . Siege Activations . | . . . . . . . Robots Corrupted . | . . . . . . . Combat Hostiles . | . . . . . . . Parts Fried 26 | . . . . 11 2 13 Impact Corruptions 36 | . . . 1 14 6 15 Robots Melted . | . . . . . . . Combat Hostiles . | . . . . . . . Parts Melted 10 | . 4 1 5 . . . Heat Transferred 2629 | . 999 185 1295 . . 150 Parts Sabotaged . | . . . . . . . Parts Stolen . | . . . . . . . Parts Stripped . | . . . . . . . Power Chain Reactions 1 | . . . . . . 1 Alert | -11 -10 -9 -9 -8 -7 -7 ------- Run | Yrd Mat Mat Min Mat Fac Sto Peak Influence 411 | . 147 155 135 233 163 411 Initial 74 | . . 61 60 14 53 74 Average 125 | . 77 93 86 133 97 203 Maximum Alert Level 2 | . . . . 1 . 2 Low Security (%) 81 | 100 100 100 100 82 100 39 Level 1 18 | . . . . 17 . 58 Level 2 . | . . . . . . 2 Level 3 . | . . . . . . . Level 4 . | . . . . . . . Level 5 . | . . . . . . . High Security . | . . . . . . . Max Security . | . . . . . . . Squads Dispatched 5 | . 1 . . . 2 2 Investigation 1 | . 1 . . . . . Extermination . | . . . . . . . Reinforcement 3 | . . . . . 1 2 Assault . | . . . . . . . Garrison 1 | . . . . . 1 . Intercept . | . . . . . . . Searches Triggered . | . . . . . . . Construction Impeded . | . . . . . . . Haulers Reinforced 1 | . . . . . . 1 Active Scanning Responses . | . . . . . . . Cargo Convoy Interrupts . | . . . . . . . Stealth | -11 -10 -9 -9 -8 -7 -7 --------- Run | Yrd Mat Mat Min Mat Fac Sto Distress Signals 3 | . . . . 2 . 1 Communications Jammed . | . . . . . . . Distress Signals . | . . . . . . . Times Spotted 70 | . 9 4 8 16 6 27 Peak Tracking Total 9 | . 3 3 5 4 3 9 Tactical Retreats 7 | . . 1 1 . . 5 Traps | -11 -10 -9 -9 -8 -7 -7 ------- Run | Yrd Mat Mat Min Mat Fac Sto Traps Triggered 3 | . 1 1 . . 1 . Indirectly . | . . . . . . . Trap Hack Attempts . | . . . . . . . Triggered . | . . . . . . . Disarmed . | . . . . . . . Reprogrammed . | . . . . . . . Reused . | . . . . . . . Traps Extracted . | . . . . . . . Installed . | . . . . . . . Triggered . | . . . . . . . Machines | -11 -10 -9 -9 -8 -7 -7 ---------- Run | Yrd Mat Mat Min Mat Fac Sto Machines Disabled 3 | . . . . . . 3 Max in Single Turn 1 | . . . . . . 1 Garrison Access 1 | . . . . . 1 . Machines Repaired . | . . . . . . . Machines Dismantled . | . . . . . . . Machines Sabotaged . | . . . . . . . Overloaded Fab Kills . | . . . . . . . Hacking | -11 -10 -9 -9 -8 -7 -7 --------- Run | Yrd Mat Mat Min Mat Fac Sto Machines Accessed 7 | . 1 1 . 2 1 2 Terminals 6 | . 1 1 . 2 . 2 Fabricators . | . . . . . . . Repair Stations . | . . . . . . . Recycling Units . | . . . . . . . Scanalyzers . | . . . . . . . Garrison Access 1 | . . . . . 1 . Total Hacks 15 | . 3 4 . 4 2 2 Successful 11 | . 2 3 . 3 1 2 Failed 4 | . 1 1 . 1 1 . Catastrophic . | . . . . . . . Database Lockouts . | . . . . . . . Manual . | . . . . . . . Terminals 13 | . 3 4 . 4 . 2 Fabricators . | . . . . . . . Repair Stations . | . . . . . . . Recycling Units . | . . . . . . . Scanalyzers . | . . . . . . . Garrison Access 2 | . . . . . 2 . Terminal Hacks 10 | . 2 3 . 3 . 2 Record 3 | . . 3 . . . . Prototype ID Bank 1 | . 1 . . . . . Open Door 2 | . . . . . . 2 Alert Level 2 | . . . . 2 . . Dispatch Records 1 | . . . . 1 . . Zone Layout 1 | . 1 . . . . . Fabricator Hacks . | . . . . . . . Repair Station Hacks . | . . . . . . . Recycling Unit Hacks . | . . . . . . . Scanalyzer . | . . . . . . . Garrison Access Hacks 1 | . . . . . 1 . Seal Access 1 | . . . . . 1 . Unauthorized Hacks . | . . . . . . . Terminals . | . . . . . . . Fabricators . | . . . . . . . Repair Stations . | . . . . . . . Recycling Units . | . . . . . . . Scanalyzers . | . . . . . . . Garrison Access . | . . . . . . . Data Cores Recovered . | . . . . . . . Used . | . . . . . . . Hacking Detections 4 | . 1 1 . 1 1 . Full Trace Events . | . . . . . . . Feedback Events . | . . . . . . . Feedback Blocked . | . . . . . . . Robot Schematics Acquired . | . . . . . . . Robots Built . | . . . . . . . Authchips . | . . . . . . . Time . | . . . . . . . Total Robot Build Rating . | . . . . . . . Part Schematics Acquired . | . . . . . . . Parts Built . | . . . . . . . Authchips . | . . . . . . . Time . | . . . . . . . Total Part Build Rating . | . . . . . . . Parts Repaired . | . . . . . . . Time . | . . . . . . . Parts Recycled . | . . . . . . . Recycled Matter . | . . . . . . . Retrieved Matter . | . . . . . . . Retrieved Components . | . . . . . . . Parts Scanalyzed . | . . . . . . . Part Schematics Acquired . | . . . . . . . Parts Damaged . | . . . . . . . Bothacking | -11 -10 -9 -9 -8 -7 -7 ------------ Run | Yrd Mat Mat Min Mat Fac Sto Used RIF Installer . | . . . . . . . Robots Hacked . | . . . . . . . Non-combat . | . . . . . . . Combat . | . . . . . . . Robot Hacks Applied . | . . . . . . . Relay Couplers Released . | . . . . . . . Fabnet Peak Effective % . | . . . . . . . Robots Rewired . | . . . . . . . Allies Hacked . | . . . . . . . Hacks Repelled . | . . . . . . . Allies | -11 -10 -9 -9 -8 -7 -7 -------- Run | Yrd Mat Mat Min Mat Fac Sto Total Allies 3 | . . . 3 . . . Largest Group 3 | . . . 3 . . . Highest-Rated Group 40 | . . . 40 . . . Highest-Rated Ally 16 | . . . 16 . . . Total Orders . | . . . . . . . Ally Attacks 5 | . . . 5 . . . Total Damage 55 | . . . 55 . . . Kills . | . . . . . . . Allies Corrupted . | . . . . . . . Allies Melted . | . . . . . . . Intel | -11 -10 -9 -9 -8 -7 -7 ------- Run | Yrd Mat Mat Min Mat Fac Sto Robot Analysis Total . | . . . . . . . Derelict Logs Recovered . | . . . . . . . Drone Launches . | . . . . . . . Drone Recoveries . | . . . . . . . Exploration | -11 -10 -9 -9 -8 -7 -7 ------------- Run | Yrd Mat Mat Min Mat Fac Sto Turns Passed 1943 | 36 255 128 298 544 242 440 Spaces Moved 1233 | 38 209 124 234 285 95 248 Core 65 | 13 18 . . . . 34 Treads 427 | . . . . 261 95 71 Legs 3 | . . . . . . 3 Wheels 598 | 25 191 124 234 24 . . Hover 140 | . . . . . . 140 Flight . | . . . . . . . Fastest Speed 50 | 50 80 80 80 100 145 50 Average Speed 108 | 69 86 80 92 141 171 98 Slowest Speed 250 | 80 150 80 100 145 225 250 Overloaded Moves . | . . . . . . . Propulsion Burnouts . | . . . . . . . Robots Hopped . | . . . . . . . Cave-ins Triggered . | . . . . . . . Exploration Rate (%) 29 | 3 37 17 49 36 5 58 Regions Visited 6 Branch Regions 2 Pre-discovered Areas . | . . . . . . . Known Exits Taken . | . . . . . . . Unknown Exits Taken 6 | 1 1 1 1 1 1 . Scrap Searched 1 | . . . 1 . . . Spaces Dug 2 | . . . . . . 2 Terrain Destroyed 7 | . . . 3 . . 4 Melee 2 | . . . . . . 2 Projectile . | . . . . . . . AOE 5 | . . . 3 . . 2 Terrain Rammed . | . . . . . . . Walls Destroyed . | . . . . . . . Machines Disabled . | . . . . . . . Actions | -11 -10 -9 -9 -8 -7 -7 --------- Run | Yrd Mat Mat Min Mat Fac Sto Total 1543 | 47 241 138 280 371 129 337 Wait 73 | . 4 6 17 28 7 11 Move 1227 | 37 208 123 233 284 94 248 Hop . | . . . . . . . Pick Up 35 | 5 4 1 3 14 1 7 Fast Attach . | . . . . . . . Attach 27 | 5 3 1 4 5 2 7 Detach 1 | . . . . . . 1 Swap 4 | . . . . 2 . 2 Drop 5 | . . . . 5 . . Fire 52 | . 21 7 22 . . 2 Melee 118 | . . . 1 33 25 59 Ram 1 | . 1 . . . . . Kick . | . . . . . . . Crush . | . . . . . . . Escape Stasis . | . . . . . . . Rewire . | . . . . . . . Trap . | . . . . . . . Miscellaneous . | . . . . . . . Route ------- -11/Scrapyard -10/Materials -9/Materials -9/Mines -8/Materials -7/Factory -7/Storage History --------- Turn | Location | Event 9 | -11/Scrapyard | Discovered new exit (range 16) 37 | -11/Scrapyard | Entered Materials 149 | -10/Materials | Discovered new exit (range 13) 292 | -10/Materials | Entered another Materials area 292 | -9/Materials | Evolved 2 slots: Utility x2 316 | -9/Materials | Build established: Mutant 354 | -9/Materials | Discovered new exit (range 6) 420 | -9/Materials | Entered Mines 420 | -9/Mines | Discovered new exit (range 9) 519 | -9/Mines | Assisted by bots powering up and referring to "LRC-V3" 601 | -9/Mines | Assembled infested the area 654 | -9/Mines | Core integrity fell below 50% 658 | -9/Mines | Core integrity fell below 20% 661 | -9/Mines | Lost 3 allies 699 | -9/Mines | Lost 7 parts (1p2n1u3w) 718 | -9/Mines | Entered Materials 718 | -8/Materials | Evolved 2 slots: Weapon x2 1225 | -8/Materials | Discovered new exit (range 15) 1262 | -8/Materials | Entered Factory 1262 | -7/Factory | Evolved 2 slots: Utility x2 1361 | -7/Factory | Garrison activated, responded to threat 1469 | -7/Factory | Discovered new exit (range 14) 1489 | -7/Factory | Build established: Gladiator 1504 | -7/Factory | Entered Storage 1621 | -7/Storage | Lost 6 parts (1p2n2u1w) 1676 | -7/Storage | Core integrity fell below 50% 1820 | -7/Storage | Found Prototype Protection 1841 | -7/Storage | Identified Lgt. Regenerative Plating 1893 | -7/Storage | Core integrity fell below 20% 1917 | -7/Storage | Build established: Mutant 1944 | -7/Storage | Destroyed by Y-54 Guardian with Gatling Laser Last Messages --------------- 01887_ Gravmag System destroyed. 01891_ Sneak attack on A-02 Transporter. 01891_ A-02 Transporter destroyed. 01892_ K-01 Serf destroyed. 01895_ Acquired Proton Missile Launcher. 01897_ K-01 Serf cleans the Component Storage. 01897_ Acquired 10 matter. 01900_ Imp. Melee Analysis Suite destroyed. 01901_ K-01 Serf cleans the Component Storage. 01905_ Chain reaction triggered in Ion Engine. 01905_ G-47 Trooper destroyed. 01905_ K-01 Serf collects debris. 01910_ System corrupted: FCS attempts to trigger Proton Missile Launcher. 01911_ Hammer destroyed. 01937_ System corrupted: IFF burst signal emitted. 01937_ G-47 Trooper destroyed. 01937_ Door malfunctions. 01940_ Proton Missile Launcher destroyed. Map ----- +----------------------------------------------------+ | ???# # =+[[ + #??? """ ########+### | | ???# # #### ### #?# """ #?# !# | | ???# # ?????# ############ """ #?# [ # | | ???# # ?????# # """ """ ## #?# ! # | | ???# # ??????# # """ """ # #?# # | | ???# ######### # """ """ #########?# # | | ???# ]%# #?????????# # | | ???# %# #?????????# # | | ???# """"" # ########### # | | ???# """"" # # ## = [ # | | ???# """""" #?? # ######/#### | | ???# """" #####+##/## "" #??#! ## | | ???# %% g=#=""" ####]%= | | ???# Y%; """ ] " %]]=* | | ???# % g# """ ####]% | | ???# ########+######## Y # """ #??#! ## | | ???# #??# ""%%"%" #??# # #??## ##? | | ???# ???# """ %"" #??# # % #???# #?? | | ???# ???# """% "" #### ##########???# #?? | | ???# ???# % # #????????# #?? | | ???# ???# % + l #????????# #?? | | ???# ???# %# k #????????# #?? | | ???# ???+ ! !# ########????????# #?? | | ???# ???## # #???????????????# #?? | | ???# ????########### k#???????????????# #?? | | ????? ??????????????# @ #???????????????# ### | | ????????????????????# #???????????????# | | ????????????????????+ #???????????????# | | ????????????????????# #???????????????# | | ????????????????????# #???????????????#####/# | | ????????????????????# #?????????????????? | | ????????????????????# #????????????????# | | ???????????????????? ????????????????# | | ???????????????????? ????????????????# | | ???????????????????? T ????????????????# | | ???????????????????? ????????????????# | | ???????????????????# k #???????????????# | | ???????????????????###/###???????????????# | | ?????????????????????? ??????????????????# | | ?????????????????????????????????????????##""T" | | ??????????????????????????????????????????#"""" | | ???????????????????????????????????????????#### | | ??????????????????????????????????????????????? | | ??????????????????????????????????????????????? | | ??????????????????????????????????????????????? | | ??????????????????????????????????????????????? | | ??????????????????????????????????????????????? | | ??????????????????????????????????????????????? | | ??????????????????????????????????????????????? | | ??????????????????????????????????????????????? | +----------------------------------------------------+ Best States ------------- Heat Dissipation 34 Energy Generation 14 Energy Capacity 280 Matter Stores 300 Matter Capacity 300 Sight Range 16 Terrain Scan Range 14 Terrain Scan Density 10 Armor Coverage 1200 Evasion (%) 53 Melee Accuracy 6 Recoil Reduction 2 Item Schematics ----------------- None Robot Schematics ------------------ None Fabricated ------------ Nothing Alien Tech Used ----------------- None Achievements -------------- None Challenges ------------ None Game ------ Seed MiniGravitonHammer Manual? 0 Play Time 00:21:53 Cumulative 24.8 hours Start 2024.04.07 @ 12:11:52 End 2024.04.07 @ 12:32:36 Sessions 1 Manual Loads 0 Difficulty Rogue Special Mode None Game No. 49 Rogue 49 Adventurer 0 Explorer 0 Win Type - Total 0 Types 0/0/0/0/0/0/0/0/0 Lore% 16 Gallery% 30 Achievement% 21 Wizard Run 0 Options --------- Layout 1 ASCII 0 Keyboard 0 Movement Mouse Keybinds 0 Fullscreen 1 Font 24/Smallcaps Map View 50x35 Zoom Use 0% Tactical HUD 1 Map Filters NONE Filters NONE Steam 1 RUN: ff1fb1d7-d021-4dbf-b892-043a5e86215f